Workbook

Sheet Media Budget by Quarter
B3: Media Budget by Quarter
B4: Product
B5: =NOW() -> 2010-04-19T18:58:58.280
B7: Medium | C7: Q1 | D7: =IF(SUM(C7)>0,CHOOSE(C7,2,3,4,1),LEFT(C7,LEN(C7)-1)&FIXED(CHOOSE(VALUE(RIGHT(C7,1)),2,3,4,1),0,TRUE)) -> Q2 | E7: =IF(SUM(D7)>0,CHOOSE(D7,2,3,4,1),LEFT(D7,LEN(D7)-1)&FIXED(CHOOSE(VALUE(RIGHT(D7,1)),2,3,4,1),0,TRUE)) -> Q3 | F7: =IF(SUM(E7)>0,CHOOSE(E7,2,3,4,1),LEFT(E7,LEN(E7)-1)&FIXED(CHOOSE(VALUE(RIGHT(E7,1)),2,3,4,1),0,TRUE)) -> Q4 | G7: Total | H7: Percent
B8: Television | C8: $500,000 | D8: $540,000 | E8: $500,000 | F8: $600,000 | G8: =IF(SUM(C8:F8),SUM(C8:F8),"") -> $2,140,000 | H8: =IF(SUM(C8:F8),+G8/G17,"") -> 39.1%
B9: Radio | C9: 100,000 | D9: 120,000 | E9: 150,000 | F9: 150,000 | G9: 520,000 | H9: =IF(SUM(C9:F9),+G9/G17,"") -> 9.5%
B10: Newspapers | C10: 200,000 | D10: 210,000 | E10: 250,000 | F10: 250,000 | G10: 910,000 | H10: =IF(SUM(C10:F10),+G10/G17,"") -> 16.6%
B11: Magazines | C11: 200,000 | D11: 210,000 | E11: 250,000 | F11: 250,000 | G11: 910,000 | H11: =IF(SUM(C11:F11),+G11/G17,"") -> 16.6%
B12: Direct Mail | C12: 200,000 | D12: 210,000 | E12: 250,000 | F12: 250,000 | G12: 910,000 | H12: =IF(SUM(C12:F12),+G12/G17,"") -> 16.6%
B13: On-Line | C13: 20,000 | D13: 20,000 | E13: 20,000 | F13: 20,000 | G13: 80,000 | H13: =IF(SUM(C13:F13),+G13/G17,"") -> 1.5%
B14: Trade Shows | H14: =IF(SUM(C14:F14),+G14/G17,"") -> 
B15: Other | H15: =IF(SUM(C15:F15),+G15/G17,"") -> 
H16: =IF(SUM(C16:F16),+G16/G17,"") -> 
B17: Total | C17: =IF(SUM(C8:C16),SUM(C8:C16),"") -> $1,220,000 | D17: =IF(SUM(D8:D16),SUM(D8:D16),"") -> $1,310,000 | E17: =IF(SUM(E8:E16),SUM(E8:E16),"") -> $1,420,000 | F17: =IF(SUM(F8:F16),SUM(F8:F16),"") -> $1,520,000 | G17: =IF(SUM(G8:G16),SUM(G8:G16),"") -> $5,470,000 | H17: =IF(SUM(C17:F17),+G17/G17,"") -> 100.0%
B19: Percent | C19: =IF(SUM(G17),C17/G17,"") -> 22.3% | D19: =IF(SUM(G17),D17/G17,"") -> 23.9% | E19: =IF(SUM(G17),E17/G17,"") -> 26.0% | F19: =IF(SUM(G17),F17/G17,"") -> 27.8% | G19: =IF(SUM(G17),G17/G17,"") -> 100.0%
